fUST/lending_fUST_20250327
["ID","MTS","AMOUNT","RATE_DAILY","PERIOD"]
[356733023,1743066643124,-1991.92932161,0.00019235,2]
[356733024,1743066643134,-1991.92932161,0.00019235,2]
[356733025,1743066643143,-1991.92932161,0.00019235,2]
[356733026,1743066643153,-1991.92932161,0.00019235,2]
[356733027,1743066643163,-1991.92932161,0.00019235,2]
[356733029,1743066643172,-1991.92932161,0.00019235,2]
[356733031,1743066643182,-1991.92932161,0.00019235,2]
[356733033,1743066643192,-1991.92932161,0.00019235,2]
[356733034,1743066643202,-1991.92932161,0.00019235,2]
[356733035,1743066643211,-1991.92932161,0.00019235,2]
[356733036,1743066643221,-1991.92932161,0.00019235,2]
[356733037,1743066643231,-1991.92932161,0.00019235,2]
[356733038,1743066643240,-1991.92932161,0.00019235,2]
[356733039,1743066643249,-1991.92932161,0.00019235,2]
[356733040,1743066643259,-1991.92932161,0.00019235,2]
[356733041,1743066643269,-1991.92932161,0.00019235,2]
[356733042,1743066643278,-1991.92932161,0.00019235,2]
[356733043,1743066643287,-1991.92932161,0.00019235,2]
[356733044,1743066643297,-1991.92932161,0.00019235,2]
[356733045,1743066643306,-1978.19187803,0.00019235,2]
[356733046,1743066643315,-1978.19187803,0.00019235,2]
[356733047,1743066643324,-1978.19187803,0.00019235,2]
[356733048,1743066643333,-1978.19187803,0.00019235,2]
[356733049,1743066643343,-1978.19187803,0.00019235,2]
[356733050,1743066643352,-1978.19187803,0.00019235,2]
[356733051,1743066643362,-1978.19187803,0.00019235,2]
[356733052,1743066643371,-1978.19187803,0.00019235,2]
[356733053,1743066643382,-1978.19187803,0.00019235,2]
[356733054,1743066643391,-1978.19187803,0.00019235,2]
[356733055,1743066643401,-1978.19187803,0.00019235,2]
[356733056,1743066643411,-1978.19187803,0.00019235,2]
[356733057,1743066643420,-1978.19187803,0.00019235,2]
[356733058,1743066643429,-1978.19187803,0.00019235,2]
[356733059,1743066643439,-1978.19187803,0.00019235,2]
[356733060,1743066643448,-1978.19187803,0.00019235,2]
[356733061,1743066643457,-1978.19187803,0.00019235,2]
[356733062,1743066643466,-1978.19187803,0.00019235,2]
[356733063,1743066643475,-1978.19187803,0.00019235,2]
[356733064,1743066643485,-1978.19187803,0.00019235,2]
[356733065,1743066643494,-1978.19187803,0.00019235,2]
[356733066,1743066643505,-1978.19187803,0.00019235,2]
[356733067,1743066643514,-1978.19187803,0.00019235,2]
[356733068,1743066643524,-1978.19187803,0.00019235,2]
[356733069,1743066643534,-1978.19187803,0.00019235,2]
[356733070,1743066643544,-1978.19187803,0.00019235,2]
[356733071,1743066643557,-1978.19187803,0.00019235,2]
[356733072,1743066643567,-1978.19187803,0.00019235,2]
[356733073,1743066643577,-1978.19187797,0.00019235,2]
[356733074,1743066643586,-500.0,0.00019235,2]
[356733075,1743066643597,-376.68318699,0.00019235,2]
[356733076,1743066643606,-152.16840045,0.00019235,2]
[356733077,1743066643615,-45442.5341587,0.00019236,2]
[356733078,1743066643625,-500.0,0.00019273,2]
[356733079,1743066643635,-160.73699713,0.00019273,2]
[356733080,1743066643644,-500.0,0.00019273,2]
[356733081,1743066643653,-417.50944261,0.00019273,2]
[356733082,1743066643663,-166.68333267,0.00019273,2]
[356733083,1743066643672,-500.0,0.00019273,2]
[356733084,1743066643681,-500.0,0.00019273,2]
[356733085,1743066643691,-500.0,0.00019273,2]
[356733086,1743066643701,-501.04421222,0.00019273,2]
[356733087,1743066643710,-438.75978164,0.00019273,2]
[356733088,1743066643719,-500.0,0.00019273,2]
[356733089,1743066643728,-500.0,0.00019273,2]
[356733090,1743066643737,-500.0,0.00019273,2]
[356733091,1743066643746,-500.0,0.00019273,2]
[356733092,1743066643755,-500.0,0.00019273,2]
[356733093,1743066643765,-1185.6098495,0.00019288,2]
[356733094,1743066643774,-1319.7281,0.0001934,2]
[356733095,1743066643784,-196.0087195,0.00019473,2]
[356733096,1743066643794,-500.0,0.00019509,2]
[356733097,1743066643803,-390.7378059,0.00019598,2]
[356733098,1743066643812,-500.0,0.00019783,2]
[356733099,1743066643821,-197.3530179,0.00019826,2]
[356733101,1743066643831,-504.97646592,0.00019996,2]
[356733103,1743066643840,-500.0,0.00019996,2]
[356733104,1743066643849,-500.0,0.00019996,2]
[356733106,1743066643859,-177.18041042,0.00019996,2]
[356733108,1743066643868,-504.66760316,0.00019996,2]
[356733110,1743066643878,-163.69753354,0.00019996,2]
[356733111,1743066643888,-500.0,0.00019996,2]
[356733112,1743066643897,-500.0,0.00019996,2]
[356733113,1743066643906,-292.59682237,0.00019996,2]
[356733114,1743066643916,-500.0,0.00019996,2]
[356733115,1743066643926,-502.35660886,0.00019996,2]
[356733116,1743066643935,-556.0567554,0.00020057,2]
[356733117,1743066643945,-633.54201987,0.00020526,2]
[356733118,1743066643955,-250.0,0.00020831,2]
[356733119,1743066643964,-1604.00295898,0.000209,3]
[356733120,1743066643973,-3673.15306595,0.00020926,2]
[356733121,1743066643983,-420.0,0.0002096,2]
[356733122,1743066643992,-500.78254355,0.00020973,2]
[356733124,1743066644002,-570.04,0.00020989,3]
[356733125,1743066644011,-285.02,0.00020989,3]
[356733126,1743066644020,-855.11,0.00020989,3]
[356733127,1743066644030,-500.0,0.00020998,2]
[356733128,1743066644039,-553.86038579,0.00020998,2]
[356733129,1743066644049,-500.0,0.00020998,2]
[356733130,1743066644060,-500.0,0.00020998,2]
[356733131,1743066644070,-18670.36315338,0.00021,2]
[356733132,1743066644079,-151.0,0.00021013,2]
[356733133,1743066644089,-600.0,0.00021013,2]
[356733134,1743066644099,-613.60997402,0.00021025,2]
[356733135,1743066644108,-622.2,0.00021068,2]
[356733136,1743066644118,-160.17052983,0.00021073,2]
[356733137,1743066644129,-502.27416483,0.00021073,2]
[356733138,1743066644138,-206.57673388,0.00021073,2]
[356733139,1743066644148,-170.33561418,0.00021073,2]
[356733140,1743066644158,-500.0,0.00021073,2]
[356733141,1743066644169,-645.2214,0.00021123,2]
[356733142,1743066644179,-9798.6453147,0.00021129,2]
[356733143,1743066644190,-1000.52710495,0.00021163,2]
[356733144,1743066644199,-500.0,0.00021173,2]
[356733145,1743066644209,-500.0,0.00021173,2]
[356733146,1743066644219,-501.92330891,0.00021173,2]
[356733147,1743066644229,-504.53610861,0.00021173,2]
[356733148,1743066644239,-501.64342316,0.00021173,2]
[356733149,1743066644248,-501.23630771,0.00021173,2]
[356733150,1743066644258,-669.0945918,0.00021178,2]
[356733151,1743066644267,-151.0,0.00021224,2]
[356733152,1743066644277,-203.074061,0.00021224,2]
[356733153,1743066644286,-203.074061,0.00021224,2]
[356733154,1743066644296,-839.265167,0.00021224,2]
[356733155,1743066644305,-9849.5223094,0.00021224,2]
[356733156,1743066644315,-693.8510917,0.00021233,2]
[356733157,1743066644324,-1253.69281976,0.00021288,2]
[356733158,1743066644335,-1604.0029588,0.00021555,3]
[356733159,1743066644344,-156.587,0.00021561,2]
[356733160,1743066644354,-211.29695724,0.000216,2]
[356733161,1743066644364,-502.85460902,0.000216,2]
[356733162,1743066644374,-514.64529008,0.000216,2]
[356733163,1743066644474,-500.0,0.000216,2]
[356733164,1743066644485,-505.28947224,0.000216,2]
[356733165,1743066644495,-500.0,0.000216,2]
[356733166,1743066644505,-461.80402664,0.000216,2]
[356733167,1743066644515,-201.1489117,0.00021716,2]
[356733168,1743066644526,-633.54201987,0.00021918,2]
[356733169,1743066644536,-180.010983,0.00021918,2]
[356733170,1743066644550,-151.0,0.00021918,2]
[356733171,1743066644560,-162.594042,0.00021946,2]
[356733172,1743066644569,-426.87885875,0.00021973,2]
[356733173,1743066644578,-24900.0,0.00022,2]
[356733174,1743066644588,-162.380719,0.00022109,2]
[356733175,1743066644598,-500.0,0.00022114,2]
[356733176,1743066644607,-500.0,0.00022114,2]
[356733177,1743066644616,-500.0,0.00022114,2]
[356733178,1743066644628,-500.0,0.00022114,2]
[356733179,1743066644637,-500.0,0.00022114,2]
[356733180,1743066644646,-500.0,0.00022114,2]
[356733181,1743066644655,-162.594042,0.00022122,2]
[356733182,1743066644665,-1604.0029588,0.0002221,3]
[356733183,1743066644674,-162.594042,0.00022297,2]
[356733184,1743066644683,-500.0,0.0002233,2]
[356733185,1743066644692,-500.0,0.0002233,2]
[356733186,1743066644702,-1140.08,0.00022359,3]
[356733187,1743066644711,-570.04,0.00022359,3]
[356733188,1743066644720,-151.0,0.00022466,2]
[356733189,1743066644729,-162.594042,0.00022473,2]
[356733190,1743066644738,-418.47884548,0.00022495,2]
[356733191,1743066644747,-211.59240651,0.00022571,2]
[356733192,1743066644757,-4151.4470285,0.00022571,2]
[356733193,1743066644766,-593.40272,0.00022571,7]
[356733194,1743066644775,-593.40272,0.00022571,7]
[356733195,1743066644784,-151.0,0.00022571,7]
[356733196,1743066644793,-438.036411,0.00022571,7]
[356733197,1743066644803,-438.036411,0.00022571,7]
[356733198,1743066644811,-151.301977,0.00022571,7]
[356733199,1743066644820,-162.727196,0.00022571,7]
[356733200,1743066644829,-162.727196,0.00022571,7]
[356733201,1743066644838,-151.0,0.00022571,7]
[356733202,1743066644847,-151.0,0.00022571,7]
[356733203,1743066644856,-154.758054,0.00022571,7]
[356733204,1743066644865,-151.0,0.00022571,7]
[356733205,1743066644875,-154.758054,0.00022571,7]
[356733206,1743066644883,-151.0,0.00022571,7]
[356733207,1743066644893,-151.0,0.00022571,7]
[356733208,1743066644902,-363.095585,0.00022571,7]
[356733209,1743066644911,-363.095585,0.00022571,7]
[356733210,1743066644921,-162.594042,0.00022649,2]
[356733211,1743066644930,-168.3888056,0.00022657,2]
[356733212,1743066644940,-171.3613985,0.00022712,2]
[356733213,1743066644949,-500.0,0.0002277,2]
[356733214,1743066644959,-162.594042,0.00022824,2]
[356733215,1743066644968,-587.0,0.00022841,2]
[356733216,1743066644977,-1604.0029588,0.00022866,4]
[356733217,1743066644987,-500.0,0.00022881,2]
[356733218,1743066644996,-500.0,0.00022953,2]
[356733219,1743066645006,-834.95724862,0.00022959,2]
[356733220,1743066645016,-161.166521,0.00022972,7]
[356733221,1743066645026,-151.0,0.00023002,7]
[356733222,1743066645036,-151.0,0.00023002,7]
[356733223,1743066645045,-1141.203006,0.00023002,7]
[356733224,1743066645056,-1141.203006,0.00023002,7]
[356733225,1743066645066,-189.750233,0.00023002,7]
[356733226,1743066645076,-189.750233,0.00023002,7]
[356733227,1743066645087,-482.491728,0.00023002,7]
[356733228,1743066645098,-482.491728,0.00023002,7]
[356733229,1743066645109,-7350.361917,0.00023002,7]
[356733230,1743066645120,-7350.361917,0.00023002,7]
[356733231,1743066645134,-834.95724862,0.00023002,7]
[356733232,1743066645145,-5000.0,0.00023002,2]
[356733233,1743066645156,-151.0,0.00023141,2]
[356733234,1743066645166,-1332.060883,0.00023141,7]
[356733235,1743066645176,-1332.060883,0.00023141,7]
[356733236,1743066645186,-1438.286069,0.00023141,7]
[356733237,1743066645197,-1438.286069,0.00023141,7]
[356733238,1743066645206,-1432.818747,0.00023141,7]
[356733239,1743066645216,-1432.818747,0.00023141,7]
[356733240,1743066645225,-151.0,0.00023141,7]
[356733241,1743066645235,-203.074061,0.00023141,7]
[356733242,1743066645245,-203.074061,0.00023141,7]
[356733243,1743066645254,-839.265167,0.00023141,7]
[356733244,1743066645264,-157.83318649,0.00023173,2]
[356733245,1743066645273,-500.0,0.00023173,2]
[356733246,1743066645282,-500.0,0.00023228,2]
[356733247,1743066645291,-633.54201987,0.00023309,2]
[356733248,1743066645301,-158.786113,0.00023398,7]
[356733249,1743066645310,-158.786113,0.00023398,7]
[356733250,1743066645319,-151.0,0.00023398,7]
[356733251,1743066645328,-674.603004,0.00023398,7]
[356733252,1743066645337,-674.603004,0.00023398,7]
[356733253,1743066645346,-156.844273,0.00023398,7]
[356733255,1743066645356,-570.837485,0.00023398,7]
[356733257,1743066645365,-570.837485,0.00023398,7]
[356733259,1743066645376,-296.84542068,0.00023465,2]
[356733261,1743066645386,-1604.0029588,0.00023521,4]
[356733262,1743066645396,-3673.15306589,0.00023637,2]
[356733264,1743066645406,-151.0,0.00023754,7]
[356733265,1743066645416,-151.0,0.00023754,7]
[356733267,1743066645426,-151.0,0.00023754,7]
[356733269,1743066645435,-162.643508,0.00023754,7]
[356733271,1743066645445,-162.643508,0.00023754,7]
[356733273,1743066645455,-151.0,0.00023754,7]
[356733275,1743066645465,-151.0,0.00023754,7]
[356733277,1743066645475,-389.89377,0.00023754,7]
[356733279,1743066645485,-389.89377,0.00023754,7]
[356733281,1743066645495,-1705.118,0.00023867,2]
[356733283,1743066645504,-2263.0,0.00023867,2]
[356733285,1743066645514,-600.0,0.00023904,2]
[356733286,1743066645523,-421.18748,0.00023943,7]
[356733288,1743066645533,-151.0,0.00023943,7]
[356733290,1743066645543,-182.271159,0.00023943,7]
[356733292,1743066645556,-151.0,0.00023943,7]
[356733295,1743066645565,-151.0,0.00023943,7]
[356733297,1743066645575,-164.6858,0.00023943,7]
[356733299,1743066645585,-164.6858,0.00023943,7]
[356733301,1743066645596,-164.6858,0.00023943,7]
[356733303,1743066645606,-164.6858,0.00023943,7]
[356733305,1743066645616,-156.360903,0.00023943,7]
[356733307,1743066645630,-151.0,0.00023943,7]
[356733309,1743066645640,-151.0,0.00023943,7]
[356733311,1743066645651,-151.0,0.00023943,7]
[356733313,1743066645661,-151.0,0.00023943,7]
[356733315,1743066645671,-151.0,0.00023943,7]
[356733318,1743066645682,-162.643508,0.00023943,7]
[356733321,1743066645692,-151.366415,0.00023943,7]
[356733323,1743066645703,-162.643508,0.00023943,7]
[356733325,1743066645713,-151.381515,0.00023943,7]
[356733327,1743066645723,-389.89377,0.00023943,7]
[356733329,1743066645732,-389.89377,0.00023943,7]
[356733331,1743066645742,-158.786113,0.00023943,7]
[356733333,1743066645752,-158.786113,0.00023943,7]
[356733335,1743066645762,-151.0,0.00023943,7]
[356733337,1743066645772,-674.603004,0.00023943,7]
[356733340,1743066645781,-674.603004,0.00023943,7]
[356733342,1743066645791,-570.837485,0.00023943,7]
[356733345,1743066645801,-570.837485,0.00023943,7]
[356733348,1743066645811,-1332.060883,0.00023943,7]
[356733350,1743066645820,-1332.060883,0.00023943,7]
[356733352,1743066645830,-166.326737,0.00023943,7]
[356733355,1743066645840,-1438.286069,0.00023943,7]
[356733358,1743066645849,-1438.286069,0.00023943,7]
[356733360,1743066645858,-593.40272,0.00023943,7]
[356733363,1743066645868,-593.40272,0.00023943,7]
[356733364,1743066645879,-151.0,0.00023943,7]
[356733375,1743066645974,-1141.203006,0.00023943,7]
[356733378,1743066645985,-1141.203006,0.00023943,7]
[356733379,1743066645995,-189.750233,0.00023943,7]
[356733381,1743066646005,-189.750233,0.00023943,7]
[356733383,1743066646015,-482.491728,0.00023943,7]
[356733385,1743066646025,-482.491728,0.00023943,7]
[356733387,1743066646035,-7350.361917,0.00023943,7]
[356733389,1743066646044,-151.0,0.00023943,7]
[356733391,1743066646054,-7350.361917,0.00023943,7]
[356733393,1743066646064,-438.036411,0.00023943,7]
[356733395,1743066646073,-438.036411,0.00023943,7]
[356733397,1743066646082,-162.727196,0.00023943,7]
[356733399,1743066646091,-162.727196,0.00023943,7]
[356733401,1743066646100,-1432.818747,0.00023943,7]
[356733403,1743066646110,-1432.818747,0.00023943,7]
[356733404,1743066646119,-151.0,0.00023943,7]
[356733406,1743066646129,-151.0,0.00023943,7]
[356733408,1743066646138,-154.758054,0.00023943,7]
[356733409,1743066646147,-166.207828,0.00023943,7]
[356733410,1743066646156,-154.758054,0.00023943,7]
[356733411,1743066646166,-151.0,0.00023943,7]
[356733412,1743066646175,-151.0,0.00023943,7]
[356733413,1743066646184,-834.95724862,0.00023943,7]
[356733414,1743066646193,-363.095585,0.00023943,7]
[356733415,1743066646203,-363.095585,0.00023943,7]
[356733416,1743066646212,-500.0,0.00024,2]
[356733417,1743066646222,-418.47884548,0.00024,7]
[356733418,1743066646231,-500.0,0.0002411,2]
[356733419,1743066646241,-440.3492437,0.00024152,2]
[356733420,1743066646251,-251.760412,0.00024152,7]
[356733421,1743066646260,-203.074061,0.00024152,7]
[356733422,1743066646271,-203.074061,0.00024152,7]
[356733423,1743066646281,-839.265167,0.00024152,7]
[356733424,1743066646290,-600.0,0.00024153,2]
[356733425,1743066646300,-1604.0029588,0.00024176,5]
[356733426,1743066646310,-500.0,0.00024386,2]
[356733427,1743066646320,-163.56932786,0.00024387,5]
[356733428,1743066646329,-601.52686377,0.00024402,2]
[356733429,1743066646339,-355.16732615,0.0002446,3]
[356733430,1743066646348,-500.0,0.0002447,2]
[356733431,1743066646358,-200.0,0.000245,30]
[356733432,1743066646368,-180.010983,0.00024658,2]
[356733433,1743066646380,-30000.0,0.000247,2]
[356733434,1743066646390,-151.0,0.000247,7]
[356733435,1743066646400,-151.0,0.000247,7]
[356733436,1743066646409,-633.54201987,0.000247,2]
[356733437,1743066646419,-363.095585,0.000247,7]
[356733438,1743066646428,-363.095585,0.000247,7]
[356733439,1743066646438,-1000.0,0.00024752,2]
[356733440,1743066646448,-1000.0,0.00024752,2]
[356733441,1743066646458,-1000.0,0.00024752,2]
[356733442,1743066646469,-1000.0,0.00024752,2]
[356733443,1743066646478,-500.0,0.00024752,2]
[356733444,1743066646489,-1000.0,0.00024752,2]
[356733445,1743066646498,-1000.0,0.00024752,2]
[356733446,1743066646508,-944.26334752,0.00024752,2]
[356733447,1743066646517,-1000.0,0.00024752,2]
[356733448,1743066646528,-1000.0,0.00024752,2]
[356733449,1743066646538,-3000.0,0.000248,2]
[356733450,1743066646549,-151.0,0.000248,7]
[356733451,1743066646561,-421.18748,0.000248,7]
[356733452,1743066646572,-151.0,0.000248,7]
[356733453,1743066646582,-151.0,0.000248,7]
[356733454,1743066646593,-151.971067,0.000248,7]
[356733455,1743066646603,-164.6858,0.000248,7]
[356733456,1743066646613,-164.6858,0.000248,7]
[356733457,1743066646626,-151.0,0.000248,7]
[356733458,1743066646637,-418.47884548,0.000248,7]
[356733459,1743066646648,-3000.0,0.0002481,2]
[356733460,1743066646659,-151.0,0.0002481,7]
[356733461,1743066646669,-151.0,0.0002481,7]
[356733462,1743066646679,-151.0,0.0002481,7]
[356733463,1743066646688,-162.643508,0.0002481,7]
[356733464,1743066646698,-162.643508,0.0002481,7]
[356733465,1743066646708,-389.89377,0.0002481,7]
[356733466,1743066646718,-389.89377,0.0002481,7]
[356733467,1743066646728,-1332.060883,0.0002481,7]
[356733468,1743066646738,-1332.060883,0.0002481,7]
[356733469,1743066646748,-1438.286069,0.0002481,7]
[356733470,1743066646758,-1438.286069,0.0002481,7]
[356733471,1743066646768,-593.40272,0.0002481,7]
[356733472,1743066646777,-593.40272,0.0002481,7]
[356733473,1743066646787,-1432.818747,0.0002481,7]
[356733474,1743066646796,-1432.818747,0.0002481,7]
[356733475,1743066646805,-154.758054,0.0002481,7]
[356733476,1743066646815,-154.758054,0.0002481,7]
[356733477,1743066646824,-4014.471582,0.0002482,2]
[356733478,1743066646833,-158.786113,0.0002482,7]
[356733479,1743066646843,-158.786113,0.0002482,7]
[356733480,1743066646852,-151.0,0.0002482,7]
[356733481,1743066646861,-674.603004,0.0002482,7]
[356733482,1743066646870,-674.603004,0.0002482,7]
[356733483,1743066646881,-570.837485,0.0002482,7]
[356733484,1743066646890,-570.837485,0.0002482,7]
[356733485,1743066646899,-151.0,0.0002482,7]
[356733486,1743066646908,-1141.203006,0.0002482,7]
[356733487,1743066646917,-1141.203006,0.0002482,7]
[356733488,1743066646927,-189.750233,0.0002482,7]
[356733489,1743066646935,-189.750233,0.0002482,7]
[356733490,1743066646945,-482.491728,0.0002482,7]
[356733491,1743066646955,-482.491728,0.0002482,7]
[356733492,1743066646964,-7350.361917,0.0002482,7]
[356733493,1743066646973,-151.0,0.0002482,7]
[356733494,1743066646983,-7350.361917,0.0002482,7]
[356733495,1743066646992,-438.036411,0.0002482,7]
[356733496,1743066647001,-438.036411,0.0002482,7]
[356733497,1743066647011,-162.727196,0.0002482,7]
[356733498,1743066647020,-162.727196,0.0002482,7]
[356733499,1743066647030,-151.0,0.0002482,7]
[356733500,1743066647039,-151.0,0.0002482,7]
[356733501,1743066647049,-203.074061,0.0002482,7]
[356733502,1743066647058,-203.074061,0.0002482,7]
[356733503,1743066647068,-839.265167,0.0002482,7]
[356733504,1743066647077,-1604.0029588,0.00024831,5]
[356733505,1743066647087,-500.0,0.0002484,2]
[356733506,1743066647097,-4110.50592125,0.00024865,2]
[356733507,1743066647107,-500.0,0.00024873,2]
[356733508,1743066647117,-500.0,0.00024873,2]
[356733509,1743066647127,-510.07274911,0.00024873,2]
[356733510,1743066647136,-508.02960669,0.00024873,2]
[356733511,1743066647146,-295.9012664,0.00024873,2]
[356733512,1743066647155,-500.0,0.00024873,2]
[356733513,1743066647165,-500.0,0.00024873,2]
[356733514,1743066647175,-500.0,0.00024873,2]
[356733515,1743066647185,-151.0,0.00024885,7]
[356733516,1743066647194,-823.0,0.0002489,2]
[356733517,1743066647204,-10056.6,0.000249,14]
[356733518,1743066647214,-151.0,0.000249,7]
[356733519,1743066647223,-421.18748,0.000249,7]
[356733520,1743066647232,-151.0,0.000249,7]
[356733521,1743066647242,-151.0,0.000249,7]
[356733522,1743066647252,-151.0,0.000249,7]
[356733523,1743066647261,-164.6858,0.000249,7]
[356733524,1743066647354,-164.6858,0.000249,7]
[356733525,1743066647364,-151.0,0.000249,7]
[356733526,1743066647375,-151.0,0.000249,7]
[356733527,1743066647385,-151.0,0.000249,7]
[356733528,1743066647395,-151.0,0.000249,7]
[356733529,1743066647405,-162.643508,0.000249,7]
[356733530,1743066647415,-162.643508,0.000249,7]
[356733531,1743066647425,-389.89377,0.000249,7]
[356733532,1743066647436,-389.89377,0.000249,7]
[356733533,1743066647446,-158.786113,0.000249,7]
[356733534,1743066647455,-158.786113,0.000249,7]
[356733535,1743066647464,-181.017574,0.000249,7]
[356733536,1743066647473,-674.603004,0.000249,7]
[356733537,1743066647483,-674.603004,0.000249,7]
[356733538,1743066647493,-570.837485,0.000249,7]
[356733539,1743066647503,-570.837485,0.000249,7]
[356733540,1743066647513,-1332.060883,0.000249,7]
[356733541,1743066647522,-1332.060883,0.000249,7]
[356733542,1743066647531,-2.76712111,0.000249,7]
[356733543,1743066648310,-275.16655845,0.000249,7]
[356733597,1743067715059,-278.25369454,0.0001,2]
[356733599,1743067721357,-153.92089248,9e-05,2]
[356733600,1743067725346,-630.54916698,0.0001,2]
[356733658,1743067832177,-369.45083302,0.0001,2]
[356733660,1743067832187,-167.816354,0.00010959,2]
[356733662,1743067832196,-368.22655227,0.000125,2]
[356733667,1743067832234,-5682.98128509,0.000125,2]
[356733669,1743067832243,-250.0,0.00018004,2]
[356733671,1743067832252,-659.86405,0.00018153,2]
[356733673,1743067832261,-1241.260986,0.00018453,2]
[356733675,1743067832270,-300.0,0.00018906,2]
[356733677,1743067832280,-10000.0,0.00018907,2]
[356733679,1743067832289,-167.816354,0.00019178,2]
[356733681,1743067832298,-255.69968423,0.00019254,2]
[356733683,1743067832308,-204.51769839,0.00019264,2]
[356733685,1743067832317,-500.0,0.00019264,2]
[356733687,1743067832326,-500.0,0.00019264,2]
[356733689,1743067832335,-500.0,0.00019264,2]
[356733691,1743067832345,-500.0,0.00019264,2]
[356733693,1743067832354,-500.0,0.00019264,2]
[356733695,1743067832363,-500.0,0.00019264,2]
[356733697,1743067832373,-500.0,0.00019264,2]
[356733699,1743067832382,-500.0,0.00019264,2]
[356733701,1743067832391,-500.0,0.00019264,2]
[356733703,1743067832400,-500.0,0.00019264,2]
[356733705,1743067832410,-500.0,0.00019264,2]
[356733707,1743067832419,-500.0,0.00019264,2]
[356733709,1743067832429,-500.0,0.00019264,2]
[356733711,1743067832438,-500.0,0.00019264,2]
[356733713,1743067832447,-500.0,0.00019264,2]
[356733715,1743067832456,-510.59380266,0.00019264,2]
[356733717,1743067832465,-500.0,0.00019264,2]
[356733719,1743067832474,-500.0,0.00019264,2]
[356733721,1743067832483,-21.89228662,0.00019264,2]
[356733723,1743067832495,-478.10771338,0.00019264,2]
[356733725,1743067832505,-500.0,0.00019264,2]
[356733727,1743067832515,-500.0,0.00019264,2]
[356733729,1743067832524,-500.0,0.00019264,2]
[356733732,1743067832534,-500.0,0.00019264,2]
[356733734,1743067832543,-500.0,0.00019264,2]
[356733736,1743067832553,-500.0,0.00019264,2]
[356733738,1743067832562,-500.0,0.00019264,2]
[356733740,1743067832571,-500.0,0.00019264,2]
[356733742,1743067832580,-500.0,0.00019264,2]
[356733744,1743067832589,-500.0,0.00019264,2]
[356733746,1743067832599,-500.0,0.00019264,2]
[356733748,1743067832608,-500.0,0.00019264,2]
[356733750,1743067832618,-500.0,0.00019264,2]
[356733752,1743067832627,-500.0,0.00019264,2]
[356733754,1743067832636,-500.0,0.00019264,2]
[356733756,1743067832646,-421.38395131,0.00019264,2]
[356733758,1743067832655,-105.34848589,0.00019264,2]
[356733761,1743067832676,-394.65151411,0.00019264,2]
[356733763,1743067832686,-57.14371354,0.00019264,2]
[356733775,1743067837922,-694.2,0.000189,2]
[356733805,1743067840419,-0.00798353,0.000189,2]
[356733806,1743067840430,-535.52761841,0.000189,2]
[356733808,1743067840440,-442.85628646,0.00019264,2]
[356733809,1743067840449,-500.0,0.00019264,2]
[356733810,1743067840459,-500.0,0.00019264,2]
[356733811,1743067840468,-500.0,0.00019264,2]
[356733812,1743067840478,-211.7970396,0.00019264,2]
[356733816,1743067843232,-288.2029604,0.00019264,2]
[356733817,1743067843241,-500.0,0.00019264,2]
[356733818,1743067843251,-500.0,0.00019264,2]
[356733819,1743067843261,-500.0,0.00019264,2]
[356733820,1743067843270,-500.0,0.00019264,2]
[356733821,1743067843280,-500.0,0.00019264,2]
[356733822,1743067843289,-500.0,0.00019264,2]
[356733823,1743067843298,-250.0,0.00019264,2]
[356733824,1743067843308,-500.0,0.00019264,2]
[356733825,1743067843317,-500.0,0.00019264,2]